[Event "Grand Prix Romania 1st Stage 2024"]
[Site "Bucuresti"]
[Date "2024.03.24"]
[Round "7.23"]
[White "Nastore, Pavel-Alexandru"]
[Black "Bulmaga, Irina"]
[Result "0-1"]
[ECO "C60"]
[WhiteElo "2182"]
[BlackElo "2429"]
[Annotator "RC"]
[PlyCount "100"]
[EventDate "2024.03.20"]
[EventType "swiss"]
[EventCountry "ROU"]
[SourceTitle "playchess.com"]
[Source "ChessBase"]
[SourceQuality "1"]
[TimeControl "900+5"]

1. e4 {[%emt 0:00:02]} e5 {[%emt 0:00:01]} 2. Nf3 {[%emt 0:00:02]} Nc6 {[%emt 0:00:02]} 3. Bb5 {[%emt 0:00:01]} a6 {[%emt 0:00:02]} 4. Ba4 {[%emt 0:00:01]} d6 {[%emt 0:00:01]} 5. c3 {[%emt 0:00:03]} Bd7 {[%emt 0:00:02]} 6. O-O {[%emt 0:00:26]} Nf6 {[%emt 0:00:03]} 7. Re1 {[%emt 0:00:05]} g6 {[%emt 0:00:02]} 8. d4 {[%emt 0:00:02]} Bg7 {[%emt 0:00:02]} 9. h3 {[%emt 0:00:19]} O-O {[%emt 0:00:03]} 10. Nbd2 {[%emt 0:00:03]} exd4 {[%emt 0:00:08]} 11. cxd4 {[%emt 0:00:02]} Nb4 {[%emt 0:00:03]} 12. Bxd7 {[%emt 0:00:27]} Qxd7 {[%emt 0:00:02]} 13. Nb1 {[%emt 0:02:29]} c5 {[%emt 0:01:18]} 14. a3 {[%emt 0:00:40]} Nc6 {[%emt 0:00:04]} 15. d5 {[%emt 0:00:03]} Nd4 {[%emt 0:00:30]} 16. Nxd4 {[%emt 0:00:19]} cxd4 {[%emt 0:00:02]} 17. Nd2 {[%emt 0:01:20]} Rfe8 {[%emt 0:00:14]} 18. f3 {[%emt 0:01:36]} Nh5 {[%emt 0:01:51]} 19. Nb3 {[%emt 0:00:17]} Qa4 {[%emt 0:00:50]} 20. Bd2 {[%emt 0:02:00]} Be5 {[%emt 0:01:31]} 21. Na5 {[%emt 0:01:05]} Qd7 {[%emt 0:01:06]} 22. Nc4 {[%emt 0:03:17]} Qe7 {[%emt 0:00:13]} 23. Nxe5 {[%emt 0:00:44]} Qxe5 {[%emt 0:00:02]} 24. Rc1 {[%emt 0:00:20]} Re7 {[%emt 0:00:53]} 25. Qb3 {[%emt 0:00:28]} Rae8 {[%emt 0:00:49]} 26. Qd3 {[%emt 0:00:14]} Ng7 {[%emt 0:02:54]} 27. Rc4 {[%emt 0:00:31]} f5 {[%emt 0:00:11]} 28. Rxd4 {[%emt 0:00:06]} Qg3 {[%emt 0:00:14]} 29. Re2 {[%emt 0:00:13]} Nh5 {[%emt 0:01:00]} 30. Rc4 {[%emt 0:00:09]} Nf6 {[%emt 0:00:24]} 31. Bc3 {[%emt 0:00:07]} fxe4 {[%emt 0:03:03]} 32. Qd4 Re5 {[%emt 0:00:00]} 33. fxe4 {[%emt 0:00:03]} Nh5 {[%emt 0:00:00]} 34. Qf2 {[%emt 0:00:02]} R5e7 {[%emt 0:00:00]} 35. e5 {[%emt 0:00:06]} Qxf2+ {[%emt 0:00:00]} 36. Kxf2 {[%emt 0:00:01]} dxe5 {[%emt 0:00:00]} 37. d6 {[%emt 0:00:00]} Rf7+ {[%emt 0:00:00]} 38. Ke1 {[%emt 0:00:02]} Nf4 {[%emt 0:00:00]} 39. Ree4 {[%emt 0:00:21]} Rd7 {[%emt 0:00:00]} 40. g3 {[%emt 0:00:04]} Nd3+ {[%emt 0:00:00]} 41. Ke2 {[%emt 0:00:01]} Rxd6 {[%emt 0:00:00]} 42. Re3 {[%emt 0:00:04]} Nc1+ {[%emt 0:00:00]} 43. Ke1 {[%emt 0:00:01]} Rd5 {[%emt 0:00:41]} 44. Rce4 {[%emt 0:00:08]} Nd3+ {[%emt 0:00:06]} 45. Ke2 {[%emt 0:00:02]} Nc1+ {[%emt 0:00:01]} 46. Ke1 {[%emt 0:00:01]} Red8 {[%emt 0:00:15]} 47. Bxe5 {[%emt 0:00:10]} Rd1+ {[%emt 0:00:01]} 48. Kf2 {[%emt 0:00:02]} Nd3+ {[%emt 0:00:12]} 49. Kf3 {[%emt 0:00:06]} Rf1+ {[%emt 0:00:05]} 50. Ke2 {[%emt 0:00:08]} Rf2+ {[%emt 0:00:05]} 0-1

[Event "Grand Prix Romania 1st Stage 2024"]
[Site "Bucuresti"]
[Date "2024.03.24"]
[Round "7.24"]
[White "Nedelcu, Teodor-Cosmin"]
[Black "Magold, Filip"]
[Result "1/2-1/2"]
[ECO "D10"]
[WhiteElo "2306"]
[BlackElo "2403"]
[Annotator "TA"]
[PlyCount "140"]
[EventDate "2024.03.20"]
[EventType "swiss"]
[EventCountry "ROU"]
[SourceTitle "playchess.com"]
[Source "ChessBase"]
[SourceQuality "1"]
[TimeControl "900+5"]

{[%evp 50,140,-79,-92,-83,-72,-79,-107,-87,-122,-87,-75,-77,-81,-81,-261,-266,-286,-278,-339,-337,-372,-239,-216,-237,-220,-46,-41,0,0,0,0,16,0,0,0,20,20,123,8,22,28,106,115,145,138,480,457,1329,1362,1208,884,970,969,949,838,641,1174,1347,1155,1155,1138,1472,1247,2317,1470,29965,29965,29967,29966,29968,29968,29967,29970,29969,29970,29965,0,0,0,0,0,0,0,0,0,0,0,0,0,0,0,0]} 1. c4 {[%emt 0:00:02]} c6 {[%emt 0:00:05]} 2. Nc3 {[%emt 0:00:01]} Nf6 {[%emt 0:00:01]} 3. d4 {[%emt 0:00:02]} d5 {[%emt 0:00:02]} 4. cxd5 {[%emt 0:00:02]} cxd5 {[%emt 0:00:04]} 5. Bf4 {[%emt 0:00:02]} Nc6 {[%emt 0:00:02]} 6. e3 {[%emt 0:00:01]} a6 {[%emt 0:00:01]} 7. Bd3 {[%emt 0:00:08]} Bg4 {[%emt 0:00:03]} 8. f3 {[%emt 0:00:02]} Bh5 {[%emt 0:00:01]} 9. Nge2 {[%emt 0:00:51]} e6 {[%emt 0:00:01] D10: Slav Defence: 3 cxd5 (without early Nf3) and 3 Nc3.} 10. O-O {[%emt 0:00:02]} Bd6 {[%emt 0:00:02]} 11. Rc1 {[%emt 0:00:17]} O-O {[%emt 0:00:05]} 12. Na4 {[%emt 0:00:20]} Bxf4 {[%emt 0:00:09]} 13. Nxf4 {[%emt 0:00:02]} Bg6 {[%emt 0:00:01]} 14. Bxg6 $146 {[%emt 0:00:09]} ({Predecessor:} 14. Nc5 Qb6 15. Bxg6 hxg6 16. Qb3 Qxb3 17. Nxb3 Nd7 18. Nd3 Rfc8 19. Kf2 Kf8 20. Nbc5 Nxc5 21. Nxc5 {1-0 Rychagov,A (2545)-Checa,N (2527) Titled Tuesday intern op 14th April blitz 2020 (4)}) 14... hxg6 {[%emt 0:00:02]} 15. Nd3 {[%emt 0:00:34]} Qe7 {[%emt 0:00:28]} 16. Qd2 {[%emt 0:00:30]} g5 {[%emt 0:00:29]} 17. Ne5 {[%emt 0:00:33]} Nxe5 {[%emt 0:00:57]} 18. dxe5 {[%emt 0:00:01]} Nd7 {[%emt 0:00:01]} 19. Qd4 {[%emt 0:00:47]} Rac8 {[%emt 0:00:02]} 20. Nb6 {[%emt 0:00:19]} Rxc1 {[%emt 0:01:04]} 21. Rxc1 {[%emt 0:00:02]} Nb8 {[%emt 0:00:01]} 22. Nc8 {[%emt 0:00:35]} Qd7 {[%emt 0:00:02]} 23. Nd6 {[%emt 0:00:11]} Nc6 {[%emt 0:00:19]} 24. Qc3 {[%emt 0:00:04]} Rd8 {[%emt 0:00:51]} 25. b3 {[%emt 0:01:33]} Nxe5 {[%emt 0:00:27]} 26. Nxb7 {[%emt 0:00:43]} Nxf3+ {[%emt 0:00:03]} (26... Qxb7 27. Qxe5 g4 28. fxg4 $14) 27. gxf3 {[%emt 0:00:01]} Qxb7 {[%emt 0:00:01]} 28. Qe5 {[%emt 0:00:02]} Qe7 {[%emt 0:01:46]} 29. Rc7 {[%emt 0:00:50]} Qd6 {[%emt 0:00:02]} 30. Qxd6 {[%emt 0:00:42]} Rxd6 {[%emt 0:00:01]} 31. Kf2 {[%emt 0:00:09]} e5 {[%emt 0:00:09]} 32. Ke2 $2 {[%emt 0:00:19]} (32. b4 $17) 32... Rh6 $19 {[%emt 0:00:02]} 33. Kd3 {[%emt 0:00:32]} Rxh2 {[%emt 0:00:06]} 34. a4 {[%emt 0:00:35]} Rb2 {[%emt 0:00:16]} 35. Rb7 {[%emt 0:00:12]} e4+ {[%emt 0:01:04]} 36. fxe4 {[%emt 0:00:17]} dxe4+ {[%emt 0:00:02]} 37. Kxe4 {[%emt 0:00:03]} g4 $2 {[%emt 0:00:01]} (37... Rf2 $1 $19 {Strongly threatening ...g4.} 38. b4 g4) 38. Kf4 $15 {[%emt 0:00:02]} g3 {[%emt 0:00:02]} (38... f5 $5 39. Kxf5 g3 $15) 39. Kxg3 {[%emt 0:00:02]} g5 {[%emt 0:00:24]} 40. Kg4 {[%emt 0:00:15]} Rg2+ {[%emt 0:00:01]} 41. Kf3 {[%emt 0:00:41]} Rb2 {[%emt 0:00:06]} 42. Kg4 {[%emt 0:00:39]} Rg2+ {[%emt 0:00:02]} 43. Kf5 {[%emt 0:00:14]} Kg7 {[%emt 0:01:04]} (43... Re2 $11) 44. Rb6 {[%emt 0:00:16]} ({Better is} 44. a5 $1 $16) 44... Rg3 {[%emt 0:00:31]} 45. Ke4 {[%emt 0:00:21]} a5 {[%emt 0:00:25]} (45... g4 $1 $11) 46. Rb5 $16 {[%emt 0:00:04]} Kg6 {[%emt 0:00:24]} 47. Rxa5 {[%emt 0:00:03]} g4 $2 {[%emt 0:00:14][%mdl 8192] [#]} (47... f5+ $16 {is more resistant.} 48. Rxf5 Rg4+ 49. Ke5 Rb4) 48. Kf4 $1 $18 {[%emt 0:00:19]} Rf3+ {[%emt 0:00:02]} (48... Rg1 $142 49. e4 (49. Rg5+ Kf6 $18) 49... Kf6) 49. Kxg4 $18 {[%emt 0:00:20]} Rxe3 {[%emt 0:00:01]} 50. Rb5 {[%emt 0:00:08]} f5+ {[%emt 0:00:01]} 51. Kf4 {[%emt 0:00:24]} Re4+ {[%emt 0:00:01]} 52. Kf3 {[%emt 0:00:01]} Kg5 {[%emt 0:00:00]} 53. a5 {[%emt 0:00:12]} Rf4+ {[%emt 0:00:04]} 54. Ke3 {[%emt 0:00:06]} Re4+ {[%emt 0:00:02]} 55. Kd3 {[%emt 0:00:03]} Re1 {[%emt 0:00:31]} 56. b4 {[%emt 0:00:27]} Ra1 {[%emt 0:00:05]} 57. Kc4 {[%emt 0:00:07]} Kg4 {[%emt 0:00:35]} 58. Rb8 {[%emt 0:00:20]} f4 {[%emt 0:00:00]} 59. Rf8 {[%emt 0:00:10]} f3 {[%emt 0:00:01]} 60. Kb5 {[%emt 0:00:06]} Kg3 {[%emt 0:00:33]} 61. a6 {[%emt 0:00:03]} f2 {[%emt 0:00:07]} 62. Kb6 {[%emt 0:00:19]} Ra4 {[%emt 0:00:08] [#]} 63. b5 $2 {[%emt 0:01:42]} (63. Rxf2 $1 {mates} Rxb4+ 64. Ka5 Re4 65. Rf8 Re7 66. Kb6 Re1 67. a7 Rb1+ 68. Kc5) 63... Rf4 $1 $11 {[%emt 0:00:01]} 64. Rxf4 {[%emt 0:00:01]} Kxf4 {[%emt 0:00:01]} 65. a7 {[%emt 0:00:01]} f1=Q {[%emt 0:00:02]} 66. a8=Q {[%emt 0:00:01]} Qg1+ {[%emt 0:00:01]} 67. Kc7 {[%emt 0:00:13]} Qg7+ {[%emt 0:00:02]} 68. Kb6 {[%emt 0:00:24]} Qd4+ {[%emt 0:00:01]} 69. Kc7 {[%emt 0:00:14]} Qe5+ {[%emt 0:00:01]} 70. Kb6 {[%emt 0:00:05]} Qd4+ {[%emt 0:00:01]} 1/2-1/2

[Event "Grand Prix Romania 1st Stage 2024"]
[Site "Bucuresti"]
[Date "2024.03.24"]
[Round "7.25"]
[White "Cosma, Elena-Luminita"]
[Black "Bulau, Andrei-Cristian"]
[Result "0-1"]
[ECO "E01"]
[WhiteElo "2238"]
[BlackElo "2142"]
[Annotator "RC"]
[PlyCount "74"]
[EventDate "2024.03.20"]
[EventType "swiss"]
[EventCountry "ROU"]
[SourceTitle "playchess.com"]
[Source "ChessBase"]
[SourceQuality "1"]
[TimeControl "900+5"]

1. d4 {[%emt 0:00:01]} d5 {[%emt 0:00:06]} 2. c4 {[%emt 0:00:07]} e6 {[%emt 0:00:04]} 3. Nf3 {[%emt 0:00:01]} c6 {[%emt 0:00:05]} 4. Nbd2 {[%emt 0:00:18]} Nf6 {[%emt 0:00:10]} 5. g3 {[%emt 0:00:02]} Nbd7 {[%emt 0:00:09]} 6. Bg2 {[%emt 0:00:02]} Bd6 {[%emt 0:00:11]} 7. O-O {[%emt 0:00:03]} b6 {[%emt 0:00:05]} 8. Qc2 {[%emt 0:00:26]} Bb7 {[%emt 0:00:08]} 9. e4 {[%emt 0:00:42]} dxe4 {[%emt 0:00:04]} 10. Nxe4 {[%emt 0:00:02]} Nxe4 {[%emt 0:00:15]} 11. Qxe4 {[%emt 0:00:01]} Nf6 {[%emt 0:00:06]} 12. Qe2 {[%emt 0:00:29]} O-O {[%emt 0:00:09]} 13. Ne5 {[%emt 0:01:07]} Qc7 {[%emt 0:00:13]} 14. Bg5 {[%emt 0:00:55]} Nd7 {[%emt 0:01:45]} 15. Nxd7 {[%emt 0:00:25]} Qxd7 {[%emt 0:00:02]} 16. Rfd1 {[%emt 0:00:03]} Qc7 {[%emt 0:01:09]} 17. Qg4 {[%emt 0:02:10]} Kh8 {[%emt 0:00:12]} 18. Qf3 {[%emt 0:01:04]} Rab8 {[%emt 0:00:29]} 19. c5 {[%emt 0:00:48]} bxc5 {[%emt 0:00:33]} 20. dxc5 {[%emt 0:00:01]} Bxc5 {[%emt 0:00:02]} 21. Bf4 {[%emt 0:01:56]} e5 {[%emt 0:00:12]} 22. Be3 {[%emt 0:00:13]} Bb6 {[%emt 0:02:31]} 23. Rac1 {[%emt 0:00:26]} c5 {[%emt 0:00:19]} 24. Qe2 {[%emt 0:00:02]} Bxg2 {[%emt 0:00:04]} 25. Kxg2 {[%emt 0:00:02]} Rfd8 {[%emt 0:00:22]} 26. Qf3 {[%emt 0:01:36]} c4 {[%emt 0:00:31]} 27. Rxd8+ {[%emt 0:00:32]} Rxd8 {[%emt 0:00:34]} 28. b3 {[%emt 0:00:01]} Bxe3 {[%emt 0:00:47]} 29. Rxc4 {[%emt 0:00:03]} Qe7 {[%emt 0:01:46]} 30. Qxe3 {[%emt 0:00:05]} h6 {[%emt 0:00:06]} 31. h4 {[%emt 0:00:25]} f5 {[%emt 0:00:38]} 32. Qc5 {[%emt 0:00:21]} Qb7+ {[%emt 0:00:37]} 33. Qc6 {[%emt 0:00:01]} Qf7 {[%emt 0:00:01]} 34. Rb4 {[%emt 0:00:18]} Rd7 {[%emt 0:01:56]} 35. h5 {[%emt 0:01:07]} Kh7 {[%emt 0:00:22]} 36. Rb8 {[%emt 0:00:01]} Rd2 {[%emt 0:00:29]} 37. Qc8 {[%emt 0:00:46]} Qd5+ {[%emt 0:00:01]} 0-1

[Event "Grand Prix Romania 1st Stage 2024"]
[Site "Bucuresti"]
[Date "2024.03.24"]
[Round "7.26"]
[White "Sandu, Mihaela"]
[Black "Filev, Georgi"]
[Result "0-1"]
[ECO "B70"]
[WhiteElo "2270"]
[BlackElo "2210"]
[Annotator "RC"]
[PlyCount "68"]
[EventDate "2024.03.20"]
[EventType "swiss"]
[EventCountry "ROU"]
[SourceTitle "playchess.com"]
[Source "ChessBase"]
[SourceQuality "1"]
[TimeControl "900+5"]

1. e4 {[%emt 0:00:02]} c5 {[%emt 0:00:04]} 2. Nf3 {[%emt 0:00:02]} d6 {[%emt 0:00:02]} 3. d4 {[%emt 0:00:01]} cxd4 {[%emt 0:00:02]} 4. Nxd4 {[%emt 0:00:01]} Nf6 {[%emt 0:00:03]} 5. Nc3 {[%emt 0:00:01]} g6 {[%emt 0:00:04]} 6. Be2 {[%emt 0:00:10]} Bg7 {[%emt 0:00:04]} 7. O-O {[%emt 0:00:02]} O-O {[%emt 0:00:06]} 8. Re1 {[%emt 0:00:02]} Nc6 {[%emt 0:00:12]} 9. Nb3 {[%emt 0:00:02]} a6 {[%emt 0:03:43]} 10. Bf1 {[%emt 0:00:04]} Bg4 {[%emt 0:00:06]} 11. f3 {[%emt 0:01:50]} Be6 {[%emt 0:00:16]} 12. Nd5 {[%emt 0:00:11]} Rc8 {[%emt 0:00:46]} 13. c3 {[%emt 0:00:11]} Ne5 {[%emt 0:01:22]} 14. Kh1 {[%emt 0:01:55]} Re8 {[%emt 0:00:34]} 15. a4 {[%emt 0:01:33]} Bd7 {[%emt 0:02:31]} 16. a5 {[%emt 0:00:32]} Nxd5 {[%emt 0:02:00]} 17. exd5 {[%emt 0:00:03]} Qc7 {[%emt 0:00:13]} 18. Bg5 {[%emt 0:00:41]} h6 {[%emt 0:00:56]} 19. Bh4 {[%emt 0:00:09]} Bb5 {[%emt 0:00:45]} 20. f4 {[%emt 0:02:39]} Bxf1 {[%emt 0:00:29]} 21. Rxf1 {[%emt 0:00:03]} Nc4 {[%emt 0:01:04]} 22. Rf2 {[%emt 0:03:18]} Ne3 {[%emt 0:00:18]} 23. Qd3 {[%emt 0:00:37]} Nf5 {[%emt 0:00:04]} 24. Bg3 {[%emt 0:00:04]} e6 {[%emt 0:00:45]} 25. dxe6 {[%emt 0:01:02]} Rxe6 {[%emt 0:00:02]} 26. Re2 {[%emt 0:01:03]} Rce8 {[%emt 0:00:13]} 27. Rxe6 {[%emt 0:00:03]} Rxe6 {[%emt 0:00:02]} 28. Re1 {[%emt 0:00:19]} Qe7 {[%emt 0:00:20]} 29. Rxe6 {[%emt 0:00:03]} Qxe6 {[%emt 0:00:01]} 30. Nd2 {[%emt 0:00:10]} Qa2 {[%emt 0:00:10]} 31. Bf2 {[%emt 0:00:14]} Qxb2 {[%emt 0:00:07]} 32. g4 {[%emt 0:00:02]} Ne7 {[%emt 0:00:14]} 33. Qxd6 {[%emt 0:00:04]} Nc6 {[%emt 0:00:04]} 34. Ne4 {[%emt 0:00:06]} Qb1+ {[%emt 0:00:01]} 0-1

[Event "Grand Prix Romania 1st Stage 2024"]
[Site "Bucuresti"]
[Date "2024.03.24"]
[Round "7.27"]
[White "Manea, Alexandru"]
[Black "Petrescu, Georgian-Dorin"]
[Result "1/2-1/2"]
[ECO "E63"]
[WhiteElo "2287"]
[BlackElo "2064"]
[Annotator "RC"]
[PlyCount "65"]
[EventDate "2024.03.20"]
[EventType "swiss"]
[EventCountry "ROU"]
[SourceTitle "playchess.com"]
[Source "ChessBase"]
[SourceQuality "1"]
[TimeControl "900+5"]

1. c4 {[%emt 0:00:03]} Nf6 {[%emt 0:00:02]} 2. Nc3 {[%emt 0:00:03]} g6 {[%emt 0:00:01]} 3. d4 {[%emt 0:00:03]} Bg7 {[%emt 0:00:02]} 4. g3 {[%emt 0:00:03]} O-O {[%emt 0:00:03]} 5. Bg2 {[%emt 0:00:01]} d6 {[%emt 0:00:03]} 6. Nf3 {[%emt 0:00:02]} Nc6 {[%emt 0:00:02]} 7. O-O {[%emt 0:00:02]} a6 {[%emt 0:00:03]} 8. b3 {[%emt 0:00:01]} e5 {[%emt 0:00:05]} 9. Bb2 {[%emt 0:00:47]} Bg4 {[%emt 0:00:37]} 10. d5 {[%emt 0:00:03]} Ne7 {[%emt 0:00:09]} 11. h3 {[%emt 0:00:02]} Bd7 {[%emt 0:00:19]} 12. e4 {[%emt 0:00:08]} Ne8 {[%emt 0:00:13]} 13. Ne1 {[%emt 0:00:11]} f5 {[%emt 0:00:03]} 14. Nd3 {[%emt 0:00:01]} b6 {[%emt 0:00:29]} 15. Kh2 {[%emt 0:00:10]} Nf6 {[%emt 0:00:30]} 16. exf5 {[%emt 0:02:14]} gxf5 {[%emt 0:00:04]} 17. f4 {[%emt 0:00:03]} e4 {[%emt 0:00:37]} 18. Ne1 {[%emt 0:00:03]} h5 {[%emt 0:01:03]} 19. Nc2 {[%emt 0:01:26]} Qe8 {[%emt 0:00:54]} 20. Rb1 {[%emt 0:00:43]} Ng6 {[%emt 0:00:33]} 21. Ne3 {[%emt 0:00:48]} Kf7 {[%emt 0:00:55]} 22. b4 {[%emt 0:00:23]} Qe7 {[%emt 0:03:23]} 23. Ne2 {[%emt 0:00:27]} h4 {[%emt 0:01:51]} 24. Bxf6 {[%emt 0:01:53]} Qxf6 {[%emt 0:00:39]} 25. g4 {[%emt 0:00:04]} fxg4 {[%emt 0:00:32]} 26. hxg4 {[%emt 0:00:04]} h3 {[%emt 0:00:19]} 27. Bxe4 {[%emt 0:00:54]} Rae8 {[%emt 0:00:32]} 28. Qd3 {[%emt 0:00:04]} Rxe4 {[%emt 0:03:22]} 29. Qxe4 {[%emt 0:06:44]} Re8 30. Qc2 {[%emt 0:00:05]} Rxe3 {[%emt 0:00:10]} 31. g5 {[%emt 0:00:05]} Qf5 {[%emt 0:00:05]} 32. Qxf5+ {[%emt 0:00:05]} Bxf5 {[%emt 0:00:05]} 33. Rbe1 {[%emt 0:00:05]} 1/2-1/2

[Event "Grand Prix Romania 1st Stage 2024"]
[Site "Bucuresti"]
[Date "2024.03.24"]
[Round "7.28"]
[White "Luncasu, Raul-Ionut"]
[Black "Antonica, Dragos-Andrei"]
[Result "0-1"]
[ECO "C19"]
[WhiteElo "2155"]
[BlackElo "2366"]
[Annotator "RC"]
[PlyCount "52"]
[EventDate "2024.03.20"]
[EventType "swiss"]
[EventCountry "ROU"]
[SourceTitle "playchess.com"]
[Source "ChessBase"]
[SourceQuality "1"]
[TimeControl "900+5"]

1. e4 {[%emt 0:00:01]} e6 {[%emt 0:00:01]} 2. d4 {[%emt 0:00:02]} d5 {[%emt 0:00:01]} 3. Nc3 {[%emt 0:00:04]} Bb4 {[%emt 0:00:06]} 4. e5 {[%emt 0:00:04]} c5 {[%emt 0:00:05]} 5. a3 {[%emt 0:00:03]} Bxc3+ {[%emt 0:00:02]} 6. bxc3 {[%emt 0:00:01]} Ne7 {[%emt 0:00:03]} 7. Nf3 {[%emt 0:00:22]} b6 {[%emt 0:00:17]} 8. Bb5+ {[%emt 0:00:03]} Bd7 {[%emt 0:00:02]} 9. Bd3 {[%emt 0:00:03]} c4 {[%emt 0:00:08]} 10. Be2 {[%emt 0:00:05]} Ba4 {[%emt 0:00:02]} 11. O-O {[%emt 0:00:13]} Nbc6 {[%emt 0:00:22]} 12. Ng5 {[%emt 0:00:14]} h6 {[%emt 0:00:18]} 13. Nh3 {[%emt 0:00:05]} Kd7 {[%emt 0:00:46]} 14. f4 {[%emt 0:00:08]} Qg8 {[%emt 0:00:08]} 15. g4 {[%emt 0:00:09]} h5 {[%emt 0:00:51]} 16. f5 {[%emt 0:00:21]} hxg4 {[%emt 0:00:56]} 17. fxe6+ {[%emt 0:00:09]} fxe6 {[%emt 0:00:02]} 18. Bxg4 {[%emt 0:00:48]} Rf8 {[%emt 0:01:38]} 19. Ng5 {[%emt 0:01:39]} Nd8 {[%emt 0:00:40]} 20. Bf4 {[%emt 0:02:32]} Nf5 {[%emt 0:00:35]} 21. Rb1 {[%emt 0:04:11]} Nc6 {[%emt 0:00:34]} 22. Rf2 {[%emt 0:00:52]} g6 {[%emt 0:01:00]} 23. Qf3 {[%emt 0:00:31]} Qg7 {[%emt 0:00:51]} 24. Kh1 {[%emt 0:00:16]} Qe7 {[%emt 0:00:09]} 25. Ra1 {[%emt 0:00:30]} Nd8 {[%emt 0:00:45]} 26. Qg3 {[%emt 0:00:34]} Nxg3+ {[%emt 0:00:05]} 0-1

[Event "Grand Prix Romania 1st Stage 2024"]
[Site "Bucuresti"]
[Date "2024.03.24"]
[Round "7.29"]
[White "Iordache, Alexia-Andreea"]
[Black "Fridman, Daniel"]
[Result "0-1"]
[ECO "A08"]
[WhiteElo "1866"]
[BlackElo "2590"]
[Annotator "RC"]
[PlyCount "90"]
[EventDate "2024.03.20"]
[EventType "swiss"]
[EventCountry "ROU"]
[SourceTitle "playchess.com"]
[Source "ChessBase"]
[SourceQuality "1"]
[TimeControl "900+5"]

1. Nf3 {[%emt 0:00:02]} d5 {[%emt 0:00:01]} 2. g3 {[%emt 0:00:01]} c5 {[%emt 0:00:04]} 3. Bg2 {[%emt 0:00:01]} g6 {[%emt 0:00:01]} 4. O-O {[%emt 0:00:03]} Bg7 {[%emt 0:00:01]} 5. d3 {[%emt 0:00:01]} Nc6 {[%emt 0:00:02]} 6. Nbd2 {[%emt 0:00:02]} Nf6 {[%emt 0:00:01]} 7. e4 {[%emt 0:00:03]} O-O {[%emt 0:00:02]} 8. Re1 {[%emt 0:00:19]} e5 {[%emt 0:00:02]} 9. a3 {[%emt 0:00:08]} dxe4 {[%emt 0:00:12]} 10. Nxe4 {[%emt 0:00:14]} Nxe4 {[%emt 0:00:12]} 11. dxe4 {[%emt 0:00:05]} Qxd1 {[%emt 0:00:03]} 12. Rxd1 {[%emt 0:00:01]} Bg4 {[%emt 0:00:02]} 13. c3 {[%emt 0:01:36]} c4 {[%emt 0:00:20]} 14. h3 {[%emt 0:00:45]} Be6 {[%emt 0:00:01]} 15. Ng5 {[%emt 0:00:22]} Bc8 {[%emt 0:00:01]} 16. f4 {[%emt 0:01:06]} h6 {[%emt 0:00:02]} 17. Nf3 {[%emt 0:00:03]} Be6 {[%emt 0:00:02]} 18. Be3 {[%emt 0:00:21]} Rfe8 {[%emt 0:00:05]} 19. Rd6 {[%emt 0:01:04]} Rac8 {[%emt 0:00:14]} 20. Rad1 {[%emt 0:00:37]} b6 {[%emt 0:00:52]} 21. Kf2 {[%emt 0:04:23]} exf4 {[%emt 0:00:16]} 22. gxf4 {[%emt 0:00:13]} Na5 {[%emt 0:00:02]} 23. Re1 {[%emt 0:02:03]} Nb3 {[%emt 0:00:09]} 24. Rdd1 {[%emt 0:00:19]} Bf6 {[%emt 0:01:17]} 25. Ke2 {[%emt 0:00:50]} Nc5 {[%emt 0:02:07]} 26. Bxc5 {[%emt 0:00:06]} Rxc5 {[%emt 0:00:03]} 27. Nd4 {[%emt 0:00:10]} Bc8 {[%emt 0:00:13]} 28. Kf1 {[%emt 0:01:15]} Bh4 {[%emt 0:00:09]} 29. Re3 {[%emt 0:00:05]} f5 {[%emt 0:00:40]} 30. e5 {[%emt 0:00:12]} g5 {[%emt 0:00:02]} 31. fxg5 {[%emt 0:00:18]} Bxg5 {[%emt 0:00:21]} 32. Re2 {[%emt 0:00:08]} Kf7 {[%emt 0:00:48]} 33. Bf3 {[%emt 0:00:15]} Rexe5 {[%emt 0:00:30]} 34. Nc6 {[%emt 0:00:25]} Rxe2 {[%emt 0:00:03]} 35. Kxe2 {[%emt 0:00:01]} Rb5 {[%emt 0:00:29]} 36. Bd5+ {[%emt 0:00:13]} Kf6 {[%emt 0:01:04]} 37. Nb4 {[%emt 0:00:09]} a5 {[%emt 0:00:02]} 38. Nc6 {[%emt 0:00:08]} Rxb2+ {[%emt 0:00:07]} 39. Kf1 {[%emt 0:00:13]} f4 {[%emt 0:00:06]} 40. Bxc4 {[%emt 0:00:00]} Bxh3+ {[%emt 0:00:02]} 41. Kg1 {[%emt 0:00:00]} f3 {[%emt 0:00:13]} 42. Rd6+ {[%emt 0:00:07]} Kg7 {[%emt 0:00:02]} 43. Ne5 {[%emt 0:00:06]} Rg2+ {[%emt 0:00:20]} 44. Kh1 {[%emt 0:00:01]} Bf4 {[%emt 0:00:01]} 45. Nxf3 {[%emt 0:00:10]} Bxd6 {[%emt 0:00:02]} 0-1